[Event "1000GM NY Winter GM-B 2024"]
[Site "New York"]
[Date "2024.01.15"]
[Round "8.2"]
[White "Paragua, Mark"]
[Black "Graif, William"]
[Result "1-0"]
[ECO "A04"]
[WhiteElo "2448"]
[BlackElo "2302"]
[Annotator "ChessBase"]
[PlyCount "77"]
[EventDate "2024.01.10"]
[EventType "tourn"]
[EventCountry "USA"]
[SourceTitle "playchess.com"]
[Source "ChessBase"]
[SourceQuality "1"]
[TimeControl "5400+30"]

1. Nf3 {[%emt 0:07:47]} c5 {[%emt 0:01:51]} 2. g3 {[%emt 0:00:20]} g6 {[%emt 0:01:45]} 3. Bg2 {[%emt 0:00:45]} Bg7 {[%emt 0:00:06]} 4. O-O {[%emt 0:00:08]} Nc6 {[%emt 0:00:51]} 5. e4 {[%emt 0:02:31]} e5 {[%emt 0:08:58]} 6. d3 {[%emt 0:01:05]} Nge7 {[%emt 0:00:12]} 7. c3 {[%emt 0:00:36]} O-O {[%emt 0:11:17]} 8. Be3 {[%emt 0:01:19]} b6 {[%emt 0:06:11]} 9. d4 {[%emt 0:01:46]} exd4 {[%emt 0:01:16]} 10. cxd4 {[%emt 0:00:12]} d5 {[%emt 0:00:28]} 11. exd5 {[%emt 0:02:42]} Nxd5 {[%emt 0:01:21]} 12. Bg5 {[%emt 0:00:36]} f6 {[%emt 0:14:23]} 13. Bd2 {[%emt 0:11:40]} cxd4 {[%emt 0:10:09]} 14. Na3 {[%emt 0:06:08]} Bb7 {[%emt 0:12:29]} 15. Nb5 {[%emt 0:05:28]} Qd7 {[%emt 0:07:27]} 16. Qb3 {[%emt 0:01:06]} Kh8 {[%emt 0:02:11]} 17. Nbxd4 {[%emt 0:05:10]} Nxd4 {[%emt 0:00:10]} 18. Nxd4 {[%emt 0:00:10]} f5 {[%emt 0:00:17]} 19. Nf3 {[%emt 0:04:03]} Bc6 {[%emt 0:06:06]} 20. Rac1 {[%emt 0:05:16]} Rac8 {[%emt 0:06:50]} 21. Ng5 {[%emt 0:17:20]} h6 {[%emt 0:00:23]} 22. Nf3 {[%emt 0:00:42]} Kh7 {[%emt 0:00:39]} 23. Rfe1 {[%emt 0:07:06]} Ba4 {[%emt 0:02:08]} 24. Qa3 {[%emt 0:00:17]} Rxc1 {[%emt 0:00:27]} 25. Rxc1 {[%emt 0:00:05]} Rd8 {[%emt 0:01:30]} 26. h4 {[%emt 0:02:57]} Ne7 {[%emt 0:02:30]} 27. Re1 {[%emt 0:02:17]} Ng8 {[%emt 0:01:04]} 28. Bc3 {[%emt 0:02:47]} Bc6 {[%emt 0:00:49]} 29. Bxg7 {[%emt 0:03:32]} Qxg7 {[%emt 0:00:06]} 30. h5 {[%emt 0:02:43]} g5 {[%emt 0:00:06]} 31. Nxg5+ {[%emt 0:00:26]} hxg5 {[%emt 0:00:46]} 32. Bxc6 {[%emt 0:00:05]} Rd2 {[%emt 0:00:54]} 33. Qe3 {[%emt 0:03:56]} Rxb2 {[%emt 0:00:30]} 34. Qe6 {[%emt 0:00:14]} f4 {[%emt 0:00:34]} 35. Rd1 {[%emt 0:01:47]} Kh8 {[%emt 0:00:33]} 36. Rd7 {[%emt 0:02:49]} Qh6 {[%emt 0:00:40]} 37. Be4 {[%emt 0:00:37]} fxg3 {[%emt 0:00:31]} 38. Qe5+ {[%emt 0:00:11]} Nf6 {[%emt 0:00:12]} 39. Rd8+ {[%emt 0:00:13]} 1-0

[Event "1000GM NY Winter GM-B 2024"]
[Site "New York"]
[Date "2024.01.15"]
[Round "8.3"]
[White "Lee, Alice"]
[Black "Levine, Joseph"]
[Result "1-0"]
[ECO "E04"]
[WhiteElo "2379"]
[BlackElo "2376"]
[Annotator "ChessBase"]
[PlyCount "105"]
[EventDate "2024.01.10"]
[EventType "tourn"]
[EventCountry "USA"]
[SourceTitle "playchess.com"]
[Source "ChessBase"]
[SourceQuality "1"]
[TimeControl "5400+30"]

1. d4 {[%emt 0:03:09]} Nf6 {[%emt 0:00:29]} 2. c4 {[%emt 0:00:05]} e6 {[%emt 0:00:11]} 3. Nf3 {[%emt 0:00:04]} d5 {[%emt 0:00:07]} 4. g3 {[%emt 0:00:04]} dxc4 {[%emt 0:00:06]} 5. Bg2 {[%emt 0:00:04]} a6 {[%emt 0:00:08]} 6. Ne5 {[%emt 0:00:03]} c5 {[%emt 0:00:17]} 7. Be3 {[%emt 0:00:12]} Nd5 {[%emt 0:01:46]} 8. O-O {[%emt 0:00:06]} f6 {[%emt 0:02:32]} 9. Nxc4 {[%emt 0:00:09]} b5 {[%emt 0:00:37]} 10. Ncd2 {[%emt 0:00:09]} Nxe3 {[%emt 0:00:34]} 11. fxe3 {[%emt 0:00:02]} Ra7 {[%emt 0:00:16]} 12. a4 {[%emt 0:00:03]} cxd4 {[%emt 0:01:41]} 13. axb5 {[%emt 0:00:03]} Bc5 {[%emt 0:00:56]} 14. Nb3 {[%emt 0:00:02]} axb5 {[%emt 0:03:34]} 15. Na3 {[%emt 0:00:07]} Bb6 {[%emt 0:09:37]} 16. exd4 {[%emt 0:11:51]} O-O {[%emt 0:15:15]} 17. Nxb5 {[%emt 0:12:34]} Rxa1 {[%emt 0:00:22]} 18. Qxa1 {[%emt 0:00:02]} e5 {[%emt 0:07:19]} 19. Nc5 {[%emt 0:10:24]} exd4 {[%emt 0:07:40]} 20. b4 {[%emt 0:00:46]} Re8 {[%emt 0:04:26]} 21. Nxd4 {[%emt 0:07:16]} Na6 {[%emt 0:08:07]} 22. Qc3 {[%emt 0:00:41]} Qe7 {[%emt 0:06:48]} 23. Rc1 {[%emt 0:21:28]} Qe3+ {[%emt 0:02:45]} 24. Qxe3 {[%emt 0:00:06]} Rxe3 {[%emt 0:00:08]} 25. Kf1 {[%emt 0:00:04]} Nxb4 {[%emt 0:18:59]} 26. Na4 {[%emt 0:00:20]} Bxd4 {[%emt 0:00:10]} 27. Rxc8+ {[%emt 0:00:04]} Kf7 {[%emt 0:00:07]} 28. Rc4 {[%emt 0:00:07]} Ra3 {[%emt 0:00:19]} 29. Rxd4 {[%emt 0:00:04]} Rxa4 {[%emt 0:00:06]} 30. Kf2 {[%emt 0:00:05]} Ke6 {[%emt 0:00:59]} 31. Bc6 {[%emt 0:01:02]} Nxc6 {[%emt 0:01:52]} 32. Rxa4 {[%emt 0:00:05]} Kf5 {[%emt 0:00:40]} 33. Rf4+ {[%emt 0:02:52]} Kg5 {[%emt 0:01:31]} 34. Kf3 {[%emt 0:01:32]} h5 {[%emt 0:01:23]} 35. Ke4 {[%emt 0:00:58]} Ne5 {[%emt 0:02:05]} 36. h3 {[%emt 0:02:45]} Nf7 {[%emt 0:00:19]} 37. Kd5 {[%emt 0:00:36]} Kg6 {[%emt 0:00:17]} 38. Ra4 {[%emt 0:02:34]} Ng5 {[%emt 0:00:38]} 39. Rh4 {[%emt 0:01:21]} Nf7 {[%emt 0:00:25]} 40. Ke6 {[%emt 0:01:15]} Nh6 {[%emt 0:02:13]} 41. Ra4 {[%emt 0:03:58]} Nf7 {[%emt 0:00:01]} 42. h4 {[%emt 0:00:57]} Nh6 {[%emt 0:00:04]} 43. Rf4 {[%emt 0:00:55]} Nf7 {[%emt 0:01:00]} 44. Ke7 {[%emt 0:01:18]} Nh6 {[%emt 0:00:58]} 45. Kf8 {[%emt 0:01:58]} Ng4 {[%emt 0:00:02]} 46. Ra4 {[%emt 0:00:40]} Nf2 {[%emt 0:02:20]} 47. Ra7 {[%emt 0:01:23]} Ne4 {[%emt 0:00:01]} 48. Rxg7+ {[%emt 0:00:12]} Kf5 {[%emt 0:00:03]} 49. Kg8 {[%emt 0:01:21]} Nf2 {[%emt 0:01:55]} 50. Kh7 {[%emt 0:01:34]} Ng4 {[%emt 0:01:22]} 51. Re7 {[%emt 0:01:01]} Nh2 {[%emt 0:00:00]} 52. Kh6 {[%emt 0:00:22]} Nf3 {[%emt 0:00:26]} 53. Kxh5 {[%emt 0:00:27]} 1-0

[Event "1000GM NY Winter GM-B 2024"]
[Site "New York"]
[Date "2024.01.15"]
[Round "8.4"]
[White "Koustav Chatterjee"]
[Black "Luo, Terry"]
[Result "1-0"]
[ECO "E60"]
[WhiteElo "2546"]
[BlackElo "2342"]
[Annotator "TA"]
[PlyCount "93"]
[EventDate "2024.01.10"]
[EventType "tourn"]
[EventCountry "USA"]
[SourceTitle "playchess.com"]
[Source "ChessBase"]
[SourceQuality "1"]
[TimeControl "5400+30"]

{[%evp 9,92,19,28,21,23,11,16,15,0,0,22,17,13,10,26,19,18,6,10,10,12,-2,12,12,20,8,22,14,22,13,39,28,29,28,29,14,70,49,38,43,49,18,16,16,54,50,56,61,154,154,154,149,223,216,222,219,215,215,218,218,218,218,235,225,272,282,327,330,296,219,359,359,518,531,596,575,1022,598,1666,1540,29995,29996,29997,29998,29999]} 1. Nf3 {[%emt 0:06:14]} Nf6 {[%emt 0:00:07]} 2. d4 {[%emt 0:00:43]} g6 {[%emt 0:00:09]} 3. c4 {[%emt 0:00:27]} Bg7 {[%emt 0:00:04]} 4. e3 {[%emt 0:00:09]} O-O {[%emt 0:00:58]} 5. Be2 {[%emt 0:00:06]} c5 {[%emt 0:03:02]} 6. dxc5 {[%emt 0:00:44] E60: King's Indian: Unusual lines and Fianchetto Variation without Nc3.} Qa5+ {[%emt 0:00:09]} 7. Bd2 {[%emt 0:05:32]} Qxc5 {[%emt 0:00:10]} 8. b4 {[%emt 0:01:15] The position is equal.} Qc7 {[%emt 0:02:00]} 9. Nc3 {[%emt 0:05:42] Wards off d5} b6 {[%emt 0:04:05]} 10. Rc1 {[%emt 0:01:10]} Bb7 {[%emt 0:00:29]} 11. O-O {[%emt 0:00:13]} d6 {[%emt 0:06:04] [#]} 12. Qc2 $146 {[%emt 0:07:19]} ({Predecessor:} 12. Nd5 Qd8 13. Nd4 Nxd5 14. cxd5 Bxd5 15. Bf3 Bxf3 16. Qxf3 d5 17. b5 a6 18. a4 axb5 19. axb5 Bxd4 20. exd4 {1-0 Meskovs,N (2504)-Javakhishvili,L (2332) Lindores Abbey Blitz Tal Memorial 2021 (18.40)}) 12... Nbd7 {[%emt 0:00:34][%cal Bb8d7,Bd7f8,Bf8e6,Be6d4][%mdl 32]} 13. e4 {[%emt 0:00:09]} Rac8 {[%emt 0:05:16]} 14. h3 {[%emt 0:01:10]} Qb8 {[%emt 0:01:25]} 15. Rfe1 {[%emt 0:04:50]} Qa8 {[%emt 0:05:45][%cal Oa7a5]} 16. Bd3 {[%emt 0:00:49]} Rfd8 {[%emt 0:02:14]} 17. Qb1 {[%emt 0:06:30]} Nf8 {[%emt 0:18:34]} 18. Bf4 {[%emt 0:05:27]} (18. Nd5 Nxd5 19. cxd5 (19. exd5 e6 $11) 19... e6) 18... Ne6 {[%emt 0:04:52]} 19. Be3 {[%emt 0:00:52]} Nd7 {[%emt 0:02:44]} 20. Nd5 {[%emt 0:01:51]} Re8 {[%emt 0:00:11]} 21. Nd2 {[%emt 0:00:54]} Nd4 {[%emt 0:05:25]} 22. Bf1 {[%emt 0:02:40]} b5 {[%emt 0:10:52]} 23. cxb5 {[%emt 0:05:13] Nc7 would be deadly. White is more active.} Bxd5 {[%emt 0:00:14]} 24. exd5 {[%emt 0:00:05]} Qxd5 {[%emt 0:00:07]} 25. Qd3 {[%emt 0:06:20]} Nb6 $1 {[%emt 0:04:01]} 26. Red1 {[%emt 0:07:23]} e5 {[%emt 0:05:46]} 27. Rxc8 {[%emt 0:09:59]} Rxc8 {[%emt 0:00:32]} 28. Nb3 $1 {[%emt 0:00:09]} Na4 {[%emt 0:10:08] Black is now going downhill.} (28... e4 $2 29. Qb1 $18) (28... Kf8 $14) 29. Nxd4 $16 {[%emt 0:00:37]} exd4 {[%emt 0:01:28]} (29... Nb2 $2 30. Nc6 $18) 30. Bxd4 {[%emt 0:00:07]} Nc3 {[%emt 0:02:33]} (30... Nb2 $16 31. Bxb2 Qxd3 32. Rxd3 Bxb2 33. Rxd6 Kf8) 31. Bxg7 $18 {[%emt 0:05:18][%mdl 64] [#] Discovered Attack. This pair of bishops is nice.} ({Inferior is} 31. Bxa7 Qxa2 32. Be3 Nxd1 33. Qxd1 Qe6 $11) 31... Qxd3 {[%emt 0:00:08]} 32. Rxd3 {[%emt 0:00:04]} Kxg7 {[%emt 0:00:05]} 33. Rxd6 {[%emt 0:00:32]} Nxa2 {[%emt 0:00:04][%mdl 4096] Endgame [#] KRB-KRN} 34. Rc6 {[%emt 0:05:24]} Rd8 {[%emt 0:00:47]} 35. Bc4 {[%emt 0:01:01]} Nxb4 {[%emt 0:00:35]} 36. Rc7 {[%emt 0:00:03][%csl LRa7,LRf7]} Rd1+ {[%emt 0:01:10]} 37. Kh2 {[%emt 0:00:05]} Ra1 {[%emt 0:00:21]} 38. Rxf7+ {[%emt 0:00:09]} ({Don't take} 38. Bxf7 $6 Ra3 39. Be6+ Kh8 $18) 38... Kh8 {[%emt 0:00:13]} 39. f4 {[%emt 0:02:46] Threatens to win with g4.} Nc2 {[%emt 0:00:07]} (39... Rc1 {was called for.}) 40. g4 {[%emt 0:01:19]} Ne3 {[%emt 0:00:16]} (40... h5 $142 41. Bd3 Nd4 42. Bxg6 h4) 41. Be6 {[%emt 0:00:07] And now f5 would win.} Rb1 {[%emt 0:00:39]} 42. Rb7 {[%emt 0:01:13]} Rb4 {[%emt 0:00:13]} 43. Kg3 {[%emt 0:00:48] aiming for f5.} Nf1+ {[%emt 0:00:20]} 44. Kh4 {[%emt 0:00:16] White threatens Kg5 and mate.} Rxf4 {[%emt 0:00:04]} 45. Kg5 {[%emt 0:00:07] White mates.} ({Weaker is} 45. Rxa7 h6 $18) 45... Rf3 {[%emt 0:00:05]} 46. Rb8+ {[%emt 0:00:10]} Kg7 {[%emt 0:00:06]} 47. Rg8# {[%emt 0:00:04] Weighted Error Value: White=0.13 (very precise) /Black=0.33} 1-0

[Event "1000GM NY Winter GM-B 2024"]
[Site "New York"]
[Date "2024.01.15"]
[Round "9.1"]
[White "Griffith, Kyron"]
[Black "Adewumi, Tanitoluwa"]
[Result "1/2-1/2"]
[ECO "B85"]
[WhiteElo "2367"]
[BlackElo "2280"]
[Annotator "TA"]
[PlyCount "43"]
[EventDate "2024.01.10"]
[EventType "tourn"]
[EventCountry "USA"]
[SourceTitle "playchess.com"]
[Source "ChessBase"]
[SourceQuality "1"]
[TimeControl "5400+30"]

{[%evp 26,29,0,0,4,-41]} 1. e4 {[%emt 0:01:49]} c5 {[%emt 0:00:07]} 2. Nf3 {[%emt 0:00:13]} e6 {[%emt 0:00:09]} 3. d4 {[%emt 0:00:20]} cxd4 {[%emt 0:00:04]} 4. Nxd4 {[%emt 0:00:06]} Nf6 {[%emt 0:00:11]} 5. Nc3 {[%emt 0:00:20]} Nc6 {[%emt 0:00:04]} 6. Be2 {[%emt 0:00:34]} d6 {[%emt 0:01:32]} 7. O-O {[%emt 0:02:25]} Be7 {[%emt 0:00:05]} 8. Be3 {[%emt 0:00:57][%cal Bc1e3,Be3d4,Bd4e5][%mdl 32]} Qc7 {[%emt 0:00:14]} 9. f4 {[%emt 0:01:03]} a6 {[%emt 0:00:17]} 10. Kh1 {[%emt 0:04:23]} O-O {[%emt 0:01:30]} 11. Qe1 {[%emt 0:00:54]} Nxd4 {[%emt 0:00:05]} 12. Bxd4 {[%emt 0:00:05]} b5 {[%emt 0:00:06]} 13. e5 {[%emt 0:03:14]} dxe5 {[%emt 0:00:25]} 14. Bxe5 {[%emt 0:01:25]} Qb6 {[%emt 0:00:10] B85: Sicilian Scheveningen: 6 Be2 a6, lines with early Be3.} 15. Bf3 {[%emt 0:02:49] [#] An uneventful encounter.} {Predecessor:} Bb7 $146 16. Qg3 Bxf3 17. Qxf3 Rac8 18. Rac1 Nd7 19. Ne4 f5 20. Nc3 Nxe5 21. fxe5 Rc5 22. Qg3 {0-1 Tejaswini,S (2081)-Vasquez Schroder,R (2554) Roquetas de Mar op 29th 2018 (1)} 1/2-1/2

[Event "1000GM NY Winter GM-B 2024"]
[Site "New York"]
[Date "2024.01.16"]
[Round "9.3"]
[White "Levine, Joseph"]
[Black "Koustav Chatterjee"]
[Result "0-1"]
[ECO "C54"]
[WhiteElo "2376"]
[BlackElo "2546"]
[Annotator "TA"]
[PlyCount "102"]
[EventDate "2024.01.10"]
[EventType "tourn"]
[EventCountry "USA"]
[SourceTitle "playchess.com"]
[Source "ChessBase"]
[SourceQuality "1"]
[TimeControl "5400+30"]

{[%evp 10,102,16,11,11,7,20,17,25,21,12,0,2,0,0,0,0,11,14,-18,-23,-43,-50,-48,-44,-65,-58,-60,-53,-53,-45,-104,-117,-108,-90,-103,-29,-63,-68,-79,-47,-99,-99,-112,-110,-108,-128,-124,-118,-137,-129,-139,-132,-147,-147,-147,-139,-149,-129,-145,-144,-168,-120,-143,-137,-214,-150,-230,-225,-242,-243,-250,-250,-262,-235,-242,-252,-253,-141,-260,-278,-260,-249,-420,-420,-413,-401,-738,-738,-5000,-4802,-4710,-4299,-4833,-4833]} 1. e4 {[%emt 0:03:31]} e5 {[%emt 0:00:05]} 2. Nf3 {[%emt 0:00:13]} Nc6 {[%emt 0:00:08]} 3. Bc4 {[%emt 0:00:04]} Nf6 {[%emt 0:00:03]} 4. d3 {[%emt 0:00:04]} Bc5 {[%emt 0:00:04]} 5. c3 {[%emt 0:00:06]} d6 {[%emt 0:00:03]} 6. O-O {[%emt 0:00:10]} a5 {[%emt 0:00:03] seems to push 6...0-0 aside. C54: Giuoco Piano: 4 c3 Nf6, main lines with 5 d4 and 5 d3.} 7. Re1 {[%emt 0:00:17]} O-O {[%emt 0:00:06]} 8. h3 {[%emt 0:00:18]} Be6 {[%emt 0:00:19] The position is equal.} 9. Bb5 {[%emt 0:00:30]} Ba7 {[%emt 0:00:06]} 10. Nbd2 {[%emt 0:00:28]} Ne7 {[%emt 1:34:33]} 11. d4 {[%emt 0:00:23]} Ng6 {[%emt 0:00:00]} 12. Nf1 {[%emt 0:00:55]} c6 {[%emt 0:00:00]} 13. Bd3 {[%emt 0:04:21]} Nh5 {[%emt 0:00:00] [#]} 14. g3 $146 {[%emt 0:08:51]} ({Predecessor:} 14. Be3 Nhf4 15. Ng3 Nxd3 16. Qxd3 f6 17. c4 Qe7 18. Rad1 Rfd8 19. b3 a4 20. Qc3 {1-0 So,W (2775)-Hovhannisyan,R (2607) Titled Tuesday intern op 28th Jun Early blitz 2022 (7)}) 14... Nf6 {[%emt 0:00:00]} (14... Bxh3 $2 15. Ng5 Nf6 16. Nxh3 $18) 15. Kg2 {[%emt 0:07:23]} Qc8 {[%emt 0:00:00]} 16. h4 $1 {[%emt 0:10:48]} d5 {[%emt 0:00:00]} 17. exd5 {[%emt 0:14:05]} Bxd5 {[%emt 0:00:00]} 18. c4 {[%emt 0:00:30]} Bxf3+ {[%emt 0:00:00]} 19. Qxf3 {[%emt 0:00:03]} Bxd4 {[%emt 0:00:00]} 20. h5 {[%emt 0:03:04] [#]} ({White should try} 20. Bf5 $15 Qd8 21. Be3) 20... e4 $1 $17 {[%emt 0:00:00][%mdl 512]} 21. Bxe4 {[%emt 0:01:11]} Ne5 $1 $36 {[%emt 0:00:00][%csl LRc4,LRf3][%cal Bg6e5,Be5g4,Bg4f2][%mdl 2080] Black is in control.} 22. Qf4 {[%emt 0:04:49]} Qg4 {[%emt 0:00:00]} (22... Nxc4 23. Bxh7+ Kxh7 24. Qxd4 $14) ({Black should play} 22... Re8 $1 $17 {...Nxe4 is the strong threat.} 23. Bf5 Qd8) 23. Qxg4 {[%emt 0:07:42]} Nexg4 {[%emt 0:00:00] A dynamic duo of knights.} 24. Bf3 {[%emt 0:02:13]} Rfe8 {[%emt 0:00:00]} 25. Rxe8+ {[%emt 0:02:33] Black converts the advantage convincingly.} (25. Be3 $15 Bxb2 26. Rab1) 25... Rxe8 {[%emt 0:00:00]} 26. Bd2 {[%emt 0:00:09] Prevents Re1.} Nxf2 {[%emt 0:00:00]} ({Reject} 26... Bxb2 $6 27. Rb1 Bd4 28. Rxb7 $11) 27. Bxa5 {[%emt 0:00:48]} Bxb2 {[%emt 0:00:00] Black has more active pieces. The white rooks are badly placed.} 28. Rb1 {[%emt 0:01:01]} Nd3 {[%emt 0:00:00]} 29. Bd2 {[%emt 0:05:28]} Ne4 {[%emt 0:00:00]} 30. Bxe4 {[%emt 0:06:40]} Rxe4 {[%emt 0:00:00]} 31. Ne3 {[%emt 0:00:29]} Re7 {[%emt 0:00:00]} 32. Kf1 {[%emt 0:03:48]} g6 {[%emt 0:00:00]} 33. hxg6 {[%emt 0:01:31]} hxg6 {[%emt 0:00:00]} 34. Ke2 {[%emt 0:00:20]} Rd7 {[%emt 0:00:00]} 35. a4 {[%emt 0:03:01]} f5 {[%emt 0:00:00]} (35... Be5 $19 36. Ng4 Bg7) 36. a5 {[%emt 0:03:04]} Be5 {[%emt 0:00:00]} 37. Nf1 {[%emt 0:03:33]} (37. a6 $17 bxa6 38. Rb6) 37... Nc5 {[%emt 0:00:00]} 38. Be1 {[%emt 0:00:20]} (38. Be3 $17 {was necessary.} Na4 39. Rb3) 38... Kf7 $19 {[%emt 0:00:27]} 39. Ne3 {[%emt 0:03:05]} Ke6 {[%emt 0:01:44]} 40. Rb6 {[%emt 0:00:06]} Bc7 {[%emt 0:00:45]} 41. Rb1 {[%emt 0:00:05]} g5 {[%emt 0:01:08]} 42. g4 {[%emt 0:00:48]} f4 {[%emt 0:00:26][%cal Bf5f4,Bf4f3][%mdl 32]} 43. Nf5 {[%emt 0:00:27] [#]} Rd3 {[%emt 0:00:06]} (43... Ke5 $1 $19 {aiming for ...Ke4.} 44. Bb4 Nd3) 44. Bb4 {[%emt 0:01:09]} (44. a6 $17 f3+ 45. Kf1 bxa6 46. Bf2) 44... f3+ {[%emt 0:00:18]} 45. Kf1 {[%emt 0:00:06] [#]} Nd7 {[%emt 0:02:11] Threatens to win with ...Ne5.} 46. Be1 $2 {[%emt 0:01:39]} (46. Re1+ Ne5 47. Bc5) 46... Ne5 {[%emt 0:03:16]} ({Worse is} 46... Nc5 47. Bf2 Nd7 48. Nd4+ Kf6 49. a6 bxa6 50. Nxc6 $17) 47. Rxb7 {[%emt 0:00:14]} Nxg4 {[%emt 0:00:26] Strongly threatening ...Be5.} 48. Ng7+ {[%emt 0:01:17]} (48. Rb3 $142 Rd1 49. Ne3 Nh2+ 50. Kf2) 48... Kd7 {[%emt 0:00:06] Black is clearly winning.} 49. Rb2 {[%emt 0:00:47]} Be5 {[%emt 0:01:37]} 50. Rb7+ {[%emt 0:00:29]} Kc8 {[%emt 0:00:05]} 51. a6 {[%emt 0:00:31]} Bd4 {[%emt 0:00:23] Weighted Error Value: White=0.49/Black=0.17 (very precise)} 0-1